[Event "17th Memorial Lezcano Montalvo 2025"]
[Site "Gran Canaria"]
[Date "2025.04.12"]
[Round "1.19"]
[White "Garcia Padron, Jose"]
[Black "Arlet, Benjamin Andres"]
[Result "1-0"]
[Annotator "RC"]
[ECO "E43"]
[WhiteElo "2355"]
[BlackElo "1721"]
[PlyCount "109"]
[EventDate "2025.04.13"]
[EventType "swiss"]
[EventCountry "ESP"]
[SourceTitle "playchess.com"]
[Source "ChessBase"]
[SourceQuality "1"]
[TimeControl "5400+30"]

1. d4 {[%emt 0:00:52]} Nf6 {[%emt 0:00:07]} 2. Nf3 {[%emt 0:00:08]} c5 {[%emt 0:00:07]} 3. e3 {[%emt 0:00:10]} e6 {[%emt 0:00:09]} 4. c4 {[%emt 0:00:06]} cxd4 {[%emt 0:00:31]} 5. exd4 {[%emt 0:00:06]} Bb4+ {[%emt 0:00:26]} 6. Nc3 {[%emt 0:00:10]} b6 {[%emt 0:00:10]} 7. Bd3 {[%emt 0:00:45]} Bb7 {[%emt 0:00:08]} 8. O-O {[%emt 0:00:10]} O-O {[%emt 0:00:07]} 9. Qe2 {[%emt 0:01:11]} d5 {[%emt 0:02:48]} 10. cxd5 {[%emt 0:02:35]} Nxd5 {[%emt 0:00:29]} 11. Qe4 {[%emt 0:11:00]} g6 {[%emt 0:01:05]} 12. Bg5 {[%emt 0:03:47]} Qc7 {[%emt 0:03:34]} 13. Nb5 {[%emt 0:01:49]} Qc8 {[%emt 0:15:09]} 14. Rac1 {[%emt 0:00:31]} Qe8 {[%emt 0:00:12]} 15. Nc7 {[%emt 0:03:26]} Qd7 {[%emt 0:04:26]} 16. Ne5 {[%emt 0:07:18]} Nxc7 {[%emt 0:01:00]} 17. Nxd7 {[%emt 0:25:44]} Bxe4 {[%emt 0:00:34]} 18. Nf6+ {[%emt 0:00:57]} Kg7 {[%emt 0:00:22]} 19. Bxe4 {[%emt 0:00:06]} h6 {[%emt 0:04:06]} 20. Bh4 {[%emt 0:02:08]} Nba6 {[%emt 0:08:09]} 21. Bxa8 {[%emt 0:01:22]} Rxa8 {[%emt 0:01:23]} 22. a3 {[%emt 0:03:16]} g5 {[%emt 0:19:06]} 23. Bg3 {[%emt 0:02:31]} Bd2 {[%emt 0:02:33]} 24. Rc2 {[%emt 0:00:25]} Kxf6 {[%emt 0:00:18]} 25. Bxc7 {[%emt 0:00:05]} Nxc7 {[%emt 0:02:56]} 26. Rxc7 {[%emt 0:00:20]} b5 {[%emt 0:01:36]} 27. Rd1 {[%emt 0:00:25]} Ba5 {[%emt 0:00:22]} 28. Rc5 {[%emt 0:00:44]} a6 {[%emt 0:01:42]} 29. Rc6 {[%emt 0:00:12]} Ke7 {[%emt 0:03:29]} 30. d5 {[%emt 0:07:09]} Kd7 {[%emt 0:07:12]} 31. b4 {[%emt 0:02:34]} Bd8 {[%emt 0:00:09]} 32. Rc3 {[%emt 0:00:14]} exd5 {[%emt 0:02:57]} 33. Rxd5+ {[%emt 0:00:14]} Ke6 {[%emt 0:00:03]} 34. Rd1 {[%emt 0:00:27]} Kf6 {[%emt 0:04:19]} 35. g3 {[%emt 0:00:45]} Be7 {[%emt 0:01:45]} 36. Rc7 {[%emt 0:01:38]} a5 {[%emt 0:00:06]} 37. Re1 {[%emt 0:04:50]} Bf8 {[%emt 0:00:33]} 38. Re3 {[%emt 0:01:47]} axb4 {[%emt 0:02:24]} 39. Rf3+ {[%emt 0:00:14]} Kg6 {[%emt 0:02:11]} 40. axb4 {[%emt 0:03:10]} f6 {[%emt 0:03:38]} 41. Rc6 {[%emt 0:00:26]} Be7 {[%emt 0:00:10]} 42. Rb6 {[%emt 0:01:48]} Ra4 {[%emt 0:00:26]} 43. Rxb5 {[%emt 0:03:27]} Rxb4 {[%emt 0:00:58]} 44. Rxb4 {[%emt 0:00:06]} Bxb4 {[%emt 0:00:02]} 45. Rb3 {[%emt 0:00:32]} Bd6 {[%emt 0:00:10]} 46. g4 {[%emt 0:00:45]} h5 {[%emt 0:00:34]} 47. h3 {[%emt 0:00:04]} h4 {[%emt 0:00:32]} 48. Kg2 {[%emt 0:00:05]} Be5 {[%emt 0:00:34]} 49. Kf3 {[%emt 0:00:09]} f5 {[%emt 0:01:10]} 50. Rb6+ {[%emt 0:00:05]} Bf6 {[%emt 0:00:09]} 51. Ra6 {[%emt 0:00:05]} fxg4+ {[%emt 0:01:33]} 52. Kxg4 {[%emt 0:00:09]} Kg7 {[%emt 0:00:19]} 53. Kf5 {[%emt 0:00:08]} Bd4 {[%emt 0:00:05]} 54. Rg6+ {[%emt 0:00:11]} Kf7 {[%emt 0:00:11]} 55. Kxg5 {[%emt 0:00:12]} 1-0

[Event "17th Memorial Lezcano Montalvo 2025"]
[Site "Gran Canaria"]
[Date "2025.04.12"]
[Round "1.20"]
[White "Martinez Correa, Rafael"]
[Black "Barlov, Dragan"]
[Result "0-1"]
[Annotator "RC"]
[ECO "B43"]
[WhiteElo "1719"]
[BlackElo "2351"]
[PlyCount "174"]
[EventDate "2025.04.13"]
[EventType "swiss"]
[EventCountry "ESP"]
[SourceTitle "playchess.com"]
[Source "ChessBase"]
[SourceQuality "1"]
[TimeControl "5400+30"]

1. e4 {[%emt 0:00:02]} c5 {[%emt 0:02:12]} 2. Nf3 {[%emt 0:00:28]} e6 {[%emt 0:00:24]} 3. d4 {[%emt 0:00:51]} cxd4 {[%emt 0:00:07]} 4. Nxd4 {[%emt 0:00:10]} a6 {[%emt 0:00:22]} 5. Nc3 {[%emt 0:01:37]} Qc7 {[%emt 0:02:41]} 6. g3 {[%emt 0:02:16]} Bb4 {[%emt 0:14:37]} 7. Nde2 {[%emt 0:03:47]} Nf6 {[%emt 0:01:01]} 8. Bg2 {[%emt 0:00:33]} Be7 {[%emt 0:04:20]} 9. O-O {[%emt 0:01:54]} O-O {[%emt 0:00:13]} 10. h3 {[%emt 0:05:33]} Nc6 {[%emt 0:04:26]} 11. Be3 {[%emt 0:01:56]} b5 {[%emt 0:01:19]} 12. f4 {[%emt 0:10:22]} Rd8 {[%emt 0:12:43]} 13. Nd4 {[%emt 0:10:14]} Bb7 {[%emt 0:03:22]} 14. e5 {[%emt 0:07:02]} Ne8 {[%emt 0:01:54]} 15. Nxc6 {[%emt 0:11:47]} Bxc6 {[%emt 0:01:19]} 16. Bxc6 {[%emt 0:03:31]} Qxc6 {[%emt 0:00:17]} 17. Qf3 {[%emt 0:01:47]} Qxf3 {[%emt 0:03:05]} 18. Rxf3 {[%emt 0:00:10]} Rdc8 {[%emt 0:01:27]} 19. Rf2 {[%emt 0:04:11]} d5 {[%emt 0:12:46]} 20. Rc1 {[%emt 0:05:12]} Rc4 {[%emt 0:10:17]} 21. Ne2 {[%emt 0:03:17]} Rac8 {[%emt 0:00:20]} 22. Nd4 {[%emt 0:00:46]} Bc5 {[%emt 0:05:50]} 23. Rd2 {[%emt 0:01:15]} b4 {[%emt 0:00:28]} 24. Kf2 {[%emt 0:01:24]} Nc7 {[%emt 0:02:51]} 25. h4 {[%emt 0:05:02]} Bxd4 {[%emt 0:08:16]} 26. Rxd4 {[%emt 0:01:53]} Nb5 {[%emt 0:00:54]} 27. Rxc4 {[%emt 0:00:11]} Rxc4 {[%emt 0:00:17]} 28. Bd2 {[%emt 0:01:25]} a5 {[%emt 0:00:31]} 29. c3 {[%emt 0:00:25]} bxc3 {[%emt 0:01:54]} 30. Bxc3 {[%emt 0:00:15]} h5 {[%emt 0:01:36]} 31. Bd2 {[%emt 0:00:56]} Rd4 {[%emt 0:00:48]} 32. Bxa5 {[%emt 0:01:21]} Ra4 {[%emt 0:00:04]} 33. b4 {[%emt 0:04:01]} Rxa2+ {[%emt 0:00:04]} 34. Ke3 {[%emt 0:00:49]} Ra3+ {[%emt 0:00:14]} 35. Kf2 {[%emt 0:00:31]} Rb3 {[%emt 0:00:46]} 36. Re1 {[%emt 0:02:55]} Nd4 {[%emt 0:01:01]} 37. Rd1 {[%emt 0:02:03]} Nc6 {[%emt 0:00:54]} 38. Rc1 {[%emt 0:00:50]} Nxb4 {[%emt 0:00:14]} 39. Bxb4 {[%emt 0:00:25]} Rxb4 {[%emt 0:00:02]} 40. Rc7 {[%emt 0:00:52]} Rb8 {[%emt 0:01:20]} 41. Rd7 {[%emt 0:00:20]} Rf8 {[%emt 0:01:31]} 42. Kf3 {[%emt 0:00:58]} Rc8 {[%emt 0:00:53]} 43. f5 {[%emt 0:02:30]} exf5 {[%emt 0:01:00]} 44. Rxd5 {[%emt 0:00:08]} g6 {[%emt 0:00:47]} 45. Rd7 {[%emt 0:00:56]} Rc4 {[%emt 0:00:36]} 46. Rd6 {[%emt 0:00:46]} Re4 {[%emt 0:00:49]} 47. Rd8+ {[%emt 0:00:22]} Kh7 {[%emt 0:00:09]} 48. Re8 {[%emt 0:00:13]} Kg7 {[%emt 0:00:07]} 49. Kf2 {[%emt 0:00:44]} f4 {[%emt 0:00:44]} 50. Kf3 {[%emt 0:00:25]} fxg3 {[%emt 0:00:10]} 51. Kxg3 {[%emt 0:00:16]} Rg4+ {[%emt 0:00:14]} 52. Kh3 {[%emt 0:00:19]} Ra4 {[%emt 0:01:12]} 53. Kg3 {[%emt 0:00:40]} Re4 {[%emt 0:00:53]} 54. Kh3 {[%emt 0:00:29]} Rg4 {[%emt 0:00:24]} 55. Rc8 {[%emt 0:01:14]} g5 {[%emt 0:00:30]} 56. hxg5 {[%emt 0:00:25]} Rxg5 {[%emt 0:00:13]} 57. Re8 {[%emt 0:00:25]} Rg4 {[%emt 0:00:19]} 58. Re7 {[%emt 0:02:10]} Kf8 {[%emt 0:00:54]} 59. Ra7 {[%emt 0:00:20]} Re4 {[%emt 0:00:09]} 60. Ra5 {[%emt 0:00:21]} Ke7 {[%emt 0:00:41]} 61. e6 {[%emt 0:00:38]} Rxe6 {[%emt 0:00:06]} 62. Rxh5 {[%emt 0:00:12]} Rg6 {[%emt 0:00:05]} 63. Ra5 {[%emt 0:00:47]} Rg1 {[%emt 0:00:40]} 64. Rb5 {[%emt 0:00:24]} f6 {[%emt 0:00:47]} 65. Ra5 {[%emt 0:00:11]} Ke6 {[%emt 0:00:37]} 66. Rb5 {[%emt 0:00:30]} f5 {[%emt 0:01:04]} 67. Kh2 {[%emt 0:01:59]} Rg4 {[%emt 0:00:24]} 68. Kh3 {[%emt 0:00:27]} Kf6 {[%emt 0:00:33]} 69. Ra5 {[%emt 0:00:17]} Rg1 {[%emt 0:00:36]} 70. Kh2 {[%emt 0:00:09]} Rg4 {[%emt 0:00:24]} 71. Kh3 {[%emt 0:00:06]} Kg5 {[%emt 0:00:25]} 72. Rb5 {[%emt 0:00:46]} Rc4 {[%emt 0:00:41]} 73. Kg3 {[%emt 0:00:26]} Rc3+ {[%emt 0:00:18]} 74. Kf2 {[%emt 0:00:15]} Kg4 {[%emt 0:00:08]} 75. Rb4+ {[%emt 0:00:13]} f4 {[%emt 0:00:08]} 76. Rb8 {[%emt 0:00:55]} Rc2+ {[%emt 0:00:08]} 77. Kf1 {[%emt 0:00:52]} Kg3 {[%emt 0:02:25]} 78. Rg8+ {[%emt 0:01:01]} Kf3 {[%emt 0:00:00]} 79. Ke1 {[%emt 0:00:20]} Rc1+ {[%emt 0:00:00]} 80. Kd2 {[%emt 0:00:05]} Rh1 {[%emt 0:00:00]} 81. Rf8 {[%emt 0:00:09]} Rf1 {[%emt 0:01:08]} 82. Rf7 {[%emt 0:00:17]} Kg2 {[%emt 0:00:35]} 83. Ke2 {[%emt 0:00:36]} f3+ {[%emt 0:00:05]} 84. Ke3 {[%emt 0:00:19]} Re1+ {[%emt 0:00:09]} 85. Kd2 {[%emt 0:00:08]} f2 {[%emt 0:00:17]} 86. Rg7+ {[%emt 0:00:06]} Kh3 {[%emt 0:00:07]} 87. Rh7+ {[%emt 0:00:06]} Kg4 {[%emt 0:00:07]} 0-1

[Event "17th Memorial Lezcano Montalvo 2025"]
[Site "Gran Canaria"]
[Date "2025.04.12"]
[Round "1.21"]
[White "Matnadze Bujiashvili, Ann"]
[Black "Peraza Concepcion, Airam"]
[Result "1-0"]
[Annotator "RC"]
[ECO "E16"]
[WhiteElo "2329"]
[BlackElo "1712"]
[PlyCount "67"]
[EventDate "2025.04.13"]
[EventType "swiss"]
[EventCountry "ESP"]
[SourceTitle "playchess.com"]
[Source "ChessBase"]
[SourceQuality "1"]
[TimeControl "5400+30"]

1. d4 {[%emt 0:00:04]} Nf6 {[%emt 0:00:15]} 2. c4 {[%emt 0:00:06]} b6 {[%emt 0:00:15]} 3. Nf3 {[%emt 0:00:10]} Bb7 {[%emt 0:00:32]} 4. g3 {[%emt 0:00:16]} e6 {[%emt 0:01:17]} 5. Bg2 {[%emt 0:00:09]} Bb4+ {[%emt 0:04:01]} 6. Nbd2 {[%emt 0:00:19]} Bxd2+ {[%emt 0:01:11]} 7. Bxd2 {[%emt 0:00:08]} O-O {[%emt 0:01:15]} 8. O-O {[%emt 0:00:24]} d6 {[%emt 0:01:12]} 9. b4 {[%emt 0:00:36]} Nbd7 {[%emt 0:01:42]} 10. a4 {[%emt 0:00:10]} Re8 {[%emt 0:04:43]} 11. a5 {[%emt 0:00:57]} a6 {[%emt 0:04:01]} 12. Qc2 {[%emt 0:05:02]} Qe7 {[%emt 0:06:01]} 13. Nh4 {[%emt 0:01:41]} Bxg2 {[%emt 0:01:47]} 14. Kxg2 {[%emt 0:00:05]} d5 {[%emt 0:07:01]} 15. Rfc1 {[%emt 0:03:33]} Rec8 {[%emt 0:04:09]} 16. Nf3 {[%emt 0:11:17]} Ne4 {[%emt 0:05:05]} 17. Be1 {[%emt 0:00:16]} Nd6 {[%emt 0:07:38]} 18. axb6 {[%emt 0:05:35]} cxb6 {[%emt 0:03:10]} 19. c5 {[%emt 0:00:05]} Nc4 {[%emt 0:00:58]} 20. Nd2 {[%emt 0:04:22]} Nxd2 {[%emt 0:01:20]} 21. Qxd2 {[%emt 0:00:26]} b5 {[%emt 0:00:27]} 22. Ra3 {[%emt 0:00:44]} Rc6 {[%emt 0:00:31]} 23. Rca1 {[%emt 0:00:19]} Nf8 {[%emt 0:01:37]} 24. Ra5 {[%emt 0:01:27]} Qb7 {[%emt 0:01:21]} 25. h4 {[%emt 0:00:12]} h6 {[%emt 0:01:16]} 26. f3 {[%emt 0:00:53]} Ng6 {[%emt 0:02:38]} 27. g4 {[%emt 0:00:14]} Ne7 {[%emt 0:04:39]} 28. h5 {[%emt 0:01:54]} Kf8 {[%emt 0:07:31]} 29. Bg3 {[%emt 0:03:27]} Nc8 {[%emt 0:02:40]} 30. g5 {[%emt 0:01:40]} hxg5 {[%emt 0:03:35]} 31. Qxg5 {[%emt 0:00:19]} f6 {[%emt 0:01:50]} 32. Qg4 {[%emt 0:01:01]} Kf7 {[%emt 0:00:58]} 33. Qg6+ {[%emt 0:00:31]} Kf8 {[%emt 0:00:12]} 34. h6 {[%emt 0:00:23]} 1-0

[Event "17th Memorial Lezcano Montalvo 2025"]
[Site "Gran Canaria"]
[Date "2025.04.12"]
[Round "1.22"]
[White "Fernandez Hernandez, Javier"]
[Black "Sanz Wawer, Daniel"]
[Result "0-1"]
[Annotator "RC"]
[ECO "D37"]
[WhiteElo "1689"]
[BlackElo "2316"]
[PlyCount "58"]
[EventDate "2025.04.13"]
[EventType "swiss"]
[EventCountry "ESP"]
[SourceTitle "playchess.com"]
[Source "ChessBase"]
[SourceQuality "1"]
[TimeControl "5400+30"]

1. d4 {[%emt 0:00:04]} Nf6 {[%emt 1:31:00]} 2. c4 {[%emt 0:00:03]} e6 {[%emt 0:00:00]} 3. Nf3 {[%emt 0:00:07]} d5 {[%emt 0:00:00]} 4. Nc3 {[%emt 0:00:06]} Be7 {[%emt 0:00:00]} 5. Bf4 {[%emt 0:00:09]} O-O {[%emt 0:00:00]} 6. e3 {[%emt 0:01:42]} c5 {[%emt 0:00:00]} 7. Bd3 {[%emt 0:00:45]} cxd4 {[%emt 0:00:00]} 8. Nxd4 {[%emt 0:00:15]} Nbd7 {[%emt 0:00:00]} 9. Nf3 {[%emt 0:04:56]} dxc4 {[%emt 0:00:00]} 10. Bxc4 {[%emt 0:00:07]} a6 {[%emt 0:00:00]} 11. O-O {[%emt 0:00:11]} b5 {[%emt 0:00:00]} 12. Bd3 {[%emt 0:01:57]} Bb7 {[%emt 0:00:00]} 13. a3 {[%emt 0:05:58]} Nh5 {[%emt 0:00:00]} 14. Bxh7+ {[%emt 0:01:30]} Kxh7 {[%emt 0:00:00]} 15. Ng5+ {[%emt 0:02:01]} Bxg5 {[%emt 0:00:00]} 16. Qxh5+ {[%emt 0:00:11]} Bh6 {[%emt 0:00:00]} 17. Rad1 {[%emt 0:00:45]} Nf6 {[%emt 0:00:00]} 18. Qh3 {[%emt 0:00:52]} Qc8 {[%emt 0:00:00]} 19. Qh4 {[%emt 0:01:30]} Rg8 {[%emt 0:00:00]} 20. Bg5 {[%emt 0:06:23]} Qc5 {[%emt 0:00:00]} 21. f4 {[%emt 0:04:49]} Nd5 {[%emt 0:00:00]} 22. Ne4 {[%emt 0:05:11]} Qxe3+ {[%emt 0:00:00]} 23. Nf2 {[%emt 0:00:05]} f6 {[%emt 0:00:00]} 24. Rd3 {[%emt 0:01:58]} fxg5 {[%emt 0:00:00]} 25. fxg5 {[%emt 0:00:25]} Qxg5 {[%emt 0:00:00]} 26. Qe4+ {[%emt 0:03:27]} Qg6 {[%emt 0:00:00]} 27. Rh3 {[%emt 0:01:11]} Qxe4 {[%emt 0:00:00]} 28. Nxe4 {[%emt 0:00:06]} Rgf8 {[%emt 0:00:00]} 29. Ng5+ {[%emt 0:00:11]} Kg8 {[%emt 0:14:00]} 0-1

[Event "17th Memorial Lezcano Montalvo 2025"]
[Site "Gran Canaria"]
[Date "2025.04.12"]
[Round "1.23"]
[White "Torres Rebolledo, Alvaro"]
[Black "Santos Falcon, Jose"]
[Result "1-0"]
[Annotator "RC"]
[ECO "C10"]
[WhiteElo "2311"]
[BlackElo "1689"]
[PlyCount "51"]
[EventDate "2025.04.13"]
[EventType "swiss"]
[EventCountry "ESP"]
[SourceTitle "playchess.com"]
[Source "ChessBase"]
[SourceQuality "1"]
[TimeControl "5400+30"]

1. e4 {[%emt 0:00:10]} e6 {[%emt 0:00:38]} 2. d4 {[%emt 0:00:45]} d5 {[%emt 0:00:26]} 3. Nd2 {[%emt 0:00:11]} dxe4 {[%emt 0:01:15]} 4. Nxe4 {[%emt 0:00:08]} Nc6 {[%emt 0:00:28]} 5. Nf3 {[%emt 0:01:14]} Nf6 {[%emt 0:00:33]} 6. Nxf6+ {[%emt 0:00:51]} gxf6 {[%emt 0:01:34]} 7. g3 {[%emt 0:14:07]} e5 {[%emt 0:11:26]} 8. Be3 {[%emt 0:03:42]} Bg4 {[%emt 0:01:12]} 9. Be2 {[%emt 0:03:01]} Bg7 {[%emt 0:07:42]} 10. c3 {[%emt 0:05:37]} h5 {[%emt 0:02:40]} 11. Nh4 {[%emt 0:14:11]} Qd5 {[%emt 0:09:43]} 12. O-O {[%emt 0:02:29]} O-O-O {[%emt 0:04:14]} 13. Bxg4+ {[%emt 0:01:26]} hxg4 {[%emt 0:00:11]} 14. Qxg4+ {[%emt 0:00:12]} Kb8 {[%emt 0:00:18]} 15. Qxg7 {[%emt 0:02:03]} Qe6 {[%emt 0:00:46]} 16. d5 {[%emt 0:01:53]} Qxd5 {[%emt 0:03:18]} 17. Qxf6 {[%emt 0:00:57]} Rdg8 {[%emt 0:02:11]} 18. Ng2 {[%emt 0:01:56]} Qd7 {[%emt 0:03:42]} 19. h4 {[%emt 0:00:50]} Rh5 {[%emt 0:02:53]} 20. Rad1 {[%emt 0:01:30]} Qg4 {[%emt 0:01:09]} 21. Qxf7 {[%emt 0:01:31]} Nd8 {[%emt 0:01:35]} 22. Qd7 {[%emt 0:02:36]} Ne6 {[%emt 0:00:40]} 23. Rd2 {[%emt 0:02:37]} Rhh8 {[%emt 0:03:16]} 24. Rfd1 {[%emt 0:01:37]} Qg6 {[%emt 0:04:39]} 25. a4 {[%emt 0:01:32]} Nf4 {[%emt 0:06:58]} 26. Qd8+ {[%emt 0:01:07]} 1-0

[Event "17th Memorial Lezcano Montalvo 2025"]
[Site "Gran Canaria"]
[Date "2025.04.12"]
[Round "1.24"]
[White "Fernandez De La Hoz A., Carlos"]
[Black "Dubkov, Andrej"]
[Result "0-1"]
[Annotator "RC"]
[ECO "B01"]
[WhiteElo "1687"]
[BlackElo "2307"]
[PlyCount "52"]
[EventDate "2025.04.13"]
[EventType "swiss"]
[EventCountry "ESP"]
[SourceTitle "playchess.com"]
[Source "ChessBase"]
[SourceQuality "1"]
[TimeControl "5400+30"]

1. e4 {[%emt 0:00:04]} d5 {[%emt 0:00:04]} 2. exd5 {[%emt 0:00:10]} Qxd5 {[%emt 0:00:05]} 3. c4 {[%emt 0:02:38]} Qe4+ {[%emt 0:01:00]} 4. Be2 {[%emt 0:02:50]} Qxg2 {[%emt 0:00:24]} 5. Bf3 {[%emt 0:00:39]} Qg6 {[%emt 0:00:27]} 6. d4 {[%emt 0:01:14]} Nc6 {[%emt 0:11:45]} 7. Nc3 {[%emt 0:06:55]} Bd7 {[%emt 0:06:46]} 8. Be3 {[%emt 0:08:29]} e5 {[%emt 0:12:06]} 9. d5 {[%emt 0:15:38]} Nb4 {[%emt 0:00:49]} 10. Kf1 {[%emt 0:07:09]} Qd3+ {[%emt 0:02:13]} 11. Qxd3 {[%emt 0:05:46]} Nxd3 {[%emt 0:00:06]} 12. b3 {[%emt 0:01:08]} a5 {[%emt 0:01:22]} 13. Rd1 {[%emt 0:03:42]} Nc5 {[%emt 0:00:29]} 14. Nge2 {[%emt 0:03:14]} O-O-O {[%emt 0:02:30]} 15. Rg1 {[%emt 0:03:44]} g6 {[%emt 0:01:07]} 16. Ng3 {[%emt 0:00:49]} f5 {[%emt 0:00:17]} 17. Bg5 {[%emt 0:02:07]} Be7 {[%emt 0:00:59]} 18. Bc1 {[%emt 0:02:41]} Nf6 {[%emt 0:01:06]} 19. Kg2 {[%emt 0:02:48]} Bd6 {[%emt 0:01:15]} 20. Kh1 {[%emt 0:01:16]} e4 {[%emt 0:00:52]} 21. Bg2 {[%emt 0:05:22]} Rde8 {[%emt 0:01:26]} 22. Rge1 {[%emt 0:01:56]} Ng4 {[%emt 0:09:01]} 23. Kg1 {[%emt 0:04:28]} Nd3 {[%emt 0:00:55]} 24. Re2 {[%emt 0:00:57]} Ndxf2 {[%emt 0:00:32]} 25. Rxf2 {[%emt 0:00:24]} Bc5 {[%emt 0:00:04]} 26. Nh1 {[%emt 0:02:07]} Nxf2 {[%emt 0:00:25]} 0-1

[Event "17th Memorial Lezcano Montalvo 2025"]
[Site "Gran Canaria"]
[Date "2025.04.12"]
[Round "1.25"]
[White "Meneses Gonzalez, Kevin Moises"]
[Black "Castellanos Gomez, Pascual"]
[Result "1-0"]
[Annotator "RC"]
[ECO "E62"]
[WhiteElo "2307"]
[BlackElo "1672"]
[PlyCount "67"]
[EventDate "2025.04.13"]
[EventType "swiss"]
[EventCountry "ESP"]
[SourceTitle "playchess.com"]
[Source "ChessBase"]
[SourceQuality "1"]
[TimeControl "5400+30"]

1. Nf3 {[%emt 0:00:03]} d6 {[%emt 0:02:25]} 2. d4 {[%emt 0:00:23]} Nf6 {[%emt 0:02:02]} 3. c4 {[%emt 0:00:09]} g6 {[%emt 0:00:57]} 4. g3 {[%emt 0:00:03]} Bg7 {[%emt 0:02:56]} 5. Bg2 {[%emt 0:00:05]} c6 {[%emt 0:02:49]} 6. Nc3 {[%emt 0:00:43]} Na6 {[%emt 0:03:38]} 7. O-O {[%emt 0:00:08]} O-O {[%emt 0:00:23]} 8. e4 {[%emt 0:00:04]} Nc7 {[%emt 0:03:21]} 9. Re1 {[%emt 0:00:30]} Re8 {[%emt 0:05:27]} 10. h3 {[%emt 0:00:27]} Rb8 {[%emt 0:03:48]} 11. a4 {[%emt 0:00:54]} Nd7 {[%emt 0:12:59]} 12. Bg5 {[%emt 0:00:18]} f6 {[%emt 0:09:23]} 13. Be3 {[%emt 0:00:23]} c5 {[%emt 0:06:20]} 14. Qc2 {[%emt 0:00:57]} Na6 {[%emt 0:03:23]} 15. Rad1 {[%emt 0:00:32]} Qa5 {[%emt 0:06:56]} 16. Qd2 {[%emt 0:03:20]} Nb4 {[%emt 0:01:55]} 17. Nd5 {[%emt 0:00:42]} e6 {[%emt 0:07:24]} 18. Nxb4 {[%emt 0:00:12]} Qxb4 {[%emt 0:01:49]} 19. Qc2 {[%emt 0:00:19]} Nb6 {[%emt 0:05:24]} 20. b3 {[%emt 0:00:05]} Nd7 {[%emt 0:00:01]} 21. h4 {[%emt 0:00:04]} e5 {[%emt 0:02:04]} 22. dxe5 {[%emt 0:00:45]} dxe5 {[%emt 0:01:16]} 23. Rd6 {[%emt 0:00:58]} Qa5 {[%emt 0:00:42]} 24. Red1 {[%emt 0:00:14]} Qc7 {[%emt 0:00:59]} 25. h5 {[%emt 0:00:04]} Bf8 {[%emt 0:00:21]} 26. R6d2 {[%emt 0:00:05]} g5 {[%emt 0:01:56]} 27. Bh3 {[%emt 0:00:11]} Nb6 {[%emt 0:01:24]} 28. Bxc8 {[%emt 0:00:10]} Rbxc8 {[%emt 0:00:21]} 29. a5 {[%emt 0:00:03]} Na8 {[%emt 0:04:54]} 30. Rd7 {[%emt 0:00:04]} Qxa5 {[%emt 0:00:55]} 31. Nh2 {[%emt 0:00:21]} Rcd8 {[%emt 0:01:36]} 32. Ng4 {[%emt 0:00:05]} Rxd7 {[%emt 0:00:42]} 33. Nxf6+ {[%emt 0:00:05]} Kh8 {[%emt 0:02:02]} 34. Rxd7 {[%emt 1:34:04]} 1-0

[Event "17th Memorial Lezcano Montalvo 2025"]
[Site "Gran Canaria"]
[Date "2025.04.12"]
[Round "1.26"]
[White "Valido Ramos, Adrian"]
[Black "Fiorito, Fabian"]
[Result "0-1"]
[Annotator "RC"]
[ECO "B06"]
[WhiteElo "1667"]
[BlackElo "2268"]
[PlyCount "116"]
[EventDate "2025.04.13"]
[EventType "swiss"]
[EventCountry "ESP"]
[SourceTitle "playchess.com"]
[Source "ChessBase"]
[SourceQuality "1"]
[TimeControl "5400+30"]

1. e4 {[%emt 0:00:02]} g6 {[%emt 0:00:59]} 2. d4 {[%emt 0:00:33]} Bg7 {[%emt 0:00:12]} 3. Nf3 {[%emt 0:00:06]} d6 {[%emt 0:02:40]} 4. Nc3 {[%emt 0:00:55]} a6 {[%emt 0:01:56]} 5. Be2 {[%emt 0:01:20]} b5 {[%emt 0:00:19]} 6. a3 {[%emt 0:03:40]} Bb7 {[%emt 0:00:53]} 7. Be3 {[%emt 0:03:06]} Nd7 {[%emt 0:00:51]} 8. d5 {[%emt 0:03:01]} c5 {[%emt 0:00:53]} 9. dxc6 {[%emt 0:02:37]} Bxc6 {[%emt 0:00:04]} 10. Bd4 {[%emt 0:04:02]} Ngf6 {[%emt 0:00:32]} 11. Bd3 {[%emt 0:06:19]} O-O {[%emt 0:01:11]} 12. O-O {[%emt 0:00:06]} Qc7 {[%emt 0:00:42]} 13. h3 {[%emt 0:01:47]} Qb7 {[%emt 0:02:36]} 14. Re1 {[%emt 0:02:34]} e5 {[%emt 0:01:18]} 15. Be3 {[%emt 0:00:07]} d5 {[%emt 0:04:11]} 16. exd5 {[%emt 0:02:23]} Nxd5 {[%emt 0:00:30]} 17. Be4 {[%emt 0:07:05]} Nxc3 {[%emt 0:01:29]} 18. Bxc6 {[%emt 0:00:05]} Qxc6 {[%emt 0:00:03]} 19. bxc3 {[%emt 0:00:04]} Rfd8 {[%emt 0:05:24]} 20. Bd2 {[%emt 0:02:49]} f6 {[%emt 0:04:07]} 21. Re3 {[%emt 0:07:16]} Nb6 {[%emt 0:00:54]} 22. Qe2 {[%emt 0:01:06]} Qc4 {[%emt 0:03:30]} 23. Be1 {[%emt 0:09:18]} Qxe2 {[%emt 0:01:02]} 24. Rxe2 {[%emt 0:00:05]} Rac8 {[%emt 0:01:13]} 25. Rb1 {[%emt 0:05:33]} Bf8 {[%emt 0:00:37]} 26. Rb3 {[%emt 0:00:26]} Nc4 {[%emt 0:03:56]} 27. Nd2 {[%emt 0:05:28]} Nxa3 {[%emt 0:02:20]} 28. Ne4 {[%emt 0:00:26]} Kg7 {[%emt 0:00:32]} 29. g4 {[%emt 0:03:42]} Nc4 {[%emt 0:00:27]} 30. f3 {[%emt 0:01:27]} Rc6 {[%emt 0:01:56]} 31. Bf2 {[%emt 0:01:44]} Rd1+ {[%emt 0:00:32]} 32. Kg2 {[%emt 0:00:11]} f5 {[%emt 0:03:52]} 33. Ng3 {[%emt 0:03:42]} Kf6 {[%emt 0:01:47]} 34. h4 {[%emt 0:02:39]} Rd2 {[%emt 0:01:37]} 35. g5+ {[%emt 0:02:28]} Kf7 {[%emt 0:00:15]} 36. Be1 {[%emt 0:01:44]} Rxe2+ {[%emt 0:00:19]} 37. Nxe2 {[%emt 0:00:05]} f4 {[%emt 0:01:45]} 38. Bf2 {[%emt 0:02:11]} Rd6 {[%emt 0:01:27]} 39. Nc1 {[%emt 0:07:01]} Rd2 {[%emt 0:01:34]} 40. Nd3 {[%emt 0:00:09]} Rxc2 {[%emt 0:00:43]} 41. Nb4 {[%emt 0:00:57]} Ne3+ {[%emt 0:01:31]} 42. Kg1 {[%emt 0:00:06]} Rc1+ {[%emt 0:00:05]} 43. Kh2 {[%emt 0:00:14]} Nd1 {[%emt 0:05:43]} 44. Be1 {[%emt 0:00:57]} Bxb4 {[%emt 0:02:09]} 45. cxb4 {[%emt 0:00:12]} Ne3 {[%emt 0:01:17]} 46. Bf2 {[%emt 0:00:46]} Rc2 {[%emt 0:00:36]} 47. Kg1 {[%emt 0:00:18]} Nc4 {[%emt 0:00:41]} 48. Rd3 {[%emt 0:02:42]} Rd2 {[%emt 0:00:45]} 49. Rc3 {[%emt 0:01:47]} Ke6 {[%emt 0:00:20]} 50. Kf1 {[%emt 0:00:25]} Rb2 {[%emt 0:01:12]} 51. Bc5 {[%emt 0:00:07]} Nd2+ {[%emt 0:01:21]} 52. Ke1 {[%emt 0:01:11]} e4 {[%emt 0:01:16]} 53. fxe4 {[%emt 0:01:50]} Nxe4 {[%emt 0:00:51]} 54. Ra3 {[%emt 0:00:19]} Kf5 {[%emt 0:02:20]} 55. Rxa6 {[%emt 0:01:44]} f3 {[%emt 0:00:28]} 56. Rf6+ {[%emt 0:00:33]} Nxf6 {[%emt 0:00:15]} 57. gxf6 {[%emt 0:00:06]} Re2+ {[%emt 0:00:09]} 58. Kf1 {[%emt 0:00:06]} Kxf6 {[%emt 0:00:03]} 0-1